Cogmind - Beta 15 @@@ ROGUE MODE // 2025.09.02 @ 18:30:21 Player: Hartman Result: Destroyed by YI-UF0 with YI-UF0's Doublenader Performance ------------- Evolutions (1) 500 Regions Visited (3) 600 Robots Destroyed (14) 70 Value Destroyed (268) 268 Prototype IDs (2) 40 Alien Tech Used (0) 0 Bonus (200) 200 TOTAL SCORE: 1678 Bonus ------- Pacifist 200 Cogmind --------- Core Integrity 0/400 Matter 270/300 Energy 250/250 System Corruption 0% Temperature Cool (0) Movement Rolling (80) Location -9/Mines Parts ------- > --- POWER (1) -------- Ion Engine > --- PROPULSION (2) --- Wheel > --- UTILITY (4) ------ Signal Interpreter > --- WEAPON (2) ------- (None) > --- INVENTORY (5) ---- EM Pulse Gun Peak State ------------ > --- POWER ------------ Ion Engine > --- PROPULSION ------- Wheel Wheel > --- UTILITY ---------- Targeting Computer Targeting Computer ECM Suite Hacking Suite > --- WEAPON ----------- EM Pulse Gun Particle Gun > --- INVENTORY -------- Ion Engine Light Ion Engine EM Pulse Gun EM Pulse Gun [Rating: 12] Favorites ----------- Power Ion Engine Engine Ion Engine Propulsion Wheel Wheel Wheel Utility Targeting Computer Device ECM Suite Storage Small Storage Unit Processor Targeting Computer Hackware Hacking Suite Protection Medium Armor Plating Weapon EM Pulse Gun Energy Gun EM Pulse Gun Special Weapon Mining Laser Special Melee Weapon Datajack Build | -11 -10 -9 -9 ------- Run | Yrd Mat Mat Min Slots Evolved 2 | . . 2 . Power . | . . . . Propulsion . | . . . . Utility 2 | . . 2 . Weapon . | . . . . Parts Attached 23 | 6 2 10 5 Power 3 | 1 . 1 1 Engine 3 | 1 . 1 1 Core . | . . . . Reactor . | . . . . Propulsion 4 | 2 . 1 1 Treads . | . . . . Leg . | . . . . Wheel 4 | 2 . 1 1 Hover . | . . . . Flight . | . . . . Utility 8 | 1 1 6 . Device 1 | . 1 . . Storage 1 | 1 . . . Processor 4 | . . 4 . Hackware 1 | . . 1 . Protection 1 | . . 1 . Artifact . | . . . . Weapon 8 | 2 1 2 3 Energy Gun 4 | 2 . 2 . Energy Cannon . | . . . . Ballistic Gun . | . . . . Ballistic Cannon . | . . . . Launcher . | . . . . Special Weapon 3 | . . . 3 Impact Weapon . | . . . . Slashing Weapon . | . . . . Piercing Weapon . | . . . . Special Melee Weapon 1 | . 1 . . Unidentified Prototypes . | . . . . Parts Lost 14 | . 1 2 11 Power 1 | . . . 1 Propulsion 3 | . . 1 2 Utility 4 | . . 1 3 Weapon 6 | . 1 . 5 Highest Loss Streak 6 | . 1 1 6 To Critical Strikes . | . . . . Average Backups 3 | 1 3 4 2 Power 1 | . 1 1 . Propulsion . | . . . . Utility . | . . . . Weapon 1 | . 1 2 1 Tool/Special . | . . . . Unused Backups 2 | . 1 1 . Power 1 | . . 1 . Propulsion 1 | . 1 . . Utility . | . . . . Weapon . | . . . . Tool/Special . | . . . . Average Slot Usage (%) 77 | . 81 93 53 Engine 11 | . 14 11 10 Wheel 16 | . 28 19 6 Device 7 | . 4 11 2 Storage 1 | . 9 . . Processor 15 | . . 22 13 Protection 2 | . . 5 . Energy Gun 18 | . 23 22 10 Special Weapon 3 | . . . 9 Peak Build Rating 12 | 6 7 12 11 Average Rating 7 | 4 5 10 5 On Entrance 5 | . 6 5 11 Naked Turns . | . . . . Heaviest Build 21 | 14 14 21 13 Greatest Support 26 | 20 20 26 26 Greatest Overweight (x) 3 | 3 . 2 2 Average Overweight (x) . | . . . . Largest Inventory Capacity 8 | 8 8 5 5 Average Capacity 5 | 7 6 5 5 Most Carried 6 | 5 6 5 5 Average Carried 3 | 2 3 4 2 Final Capacity 8 | 8 5 5 5 Final Carried 5 | 3 4 5 1 Class Distribution -------------------- 100% | Mutant Dominant Class ---------------- Mutant | -10/Materials Mutant | -9/Materials Mutant | -9/Mines Resources | -11 -10 -9 -9 ----------- Run | Yrd Mat Mat Min Matter Collected 374 | 208 . 166 . Remotely . | . . . . Salvage Created 348 | . . 348 . Parts 37 | . . 37 . Haulers Intercepted . | . . . . Recyclers Shooed . | . . . . Parts Field Recycled . | . . . . Retrieved Matter . | . . . . Parts Self-Destructed . | . . . . Prevented . | . . . . Kills | -11 -10 -9 -9 ------- Run | Yrd Mat Mat Min Combat Hostiles Destroyed 10 | . . 10 . Guns 10 | . . 10 . Classes Destroyed 5 | . . 5 . Operator 2 | . . 2 . Watcher 2 | . . 2 . Swarmer 7 | . . 7 . Grunt 1 | . . 1 . Sentry 2 | . . 2 . Best Kill Streak 5 | . . 5 . Combat Bots Only 4 | . . 4 . Max Kills in Single Turn 1 | . . 1 . Gunslinging . | . . . . Exploded . | . . . . Melee . | . . . . Uniques/NPCs Destroyed . | . . . . Combat | -11 -10 -9 -9 -------- Run | Yrd Mat Mat Min Hostile Shots Fired 83 | . 3 42 38 Missed 30 | . 1 15 14 Hits 53 | . 2 27 24 Projectile 53 | . 2 27 24 AOE 18 | . . . 18 Damage Taken 1056 | . 32 294 730 Core 401 | . . 37 364 Absorbed by Shields . | . . . . Core Remaining (%) 100 | 100 100 . . Volleys Fired 30 | . . 30 . Largest 2 | . . 2 . Hottest 105 | . . 105 . Shots Fired 56 | . . 56 . Gun 56 | . . 56 . Cannon . | . . . . Launcher . | . . . . Special . | . . . . Kinetic . | . . . . Thermal 26 | . . 26 . Explosive . | . . . . Electromagnetic 30 | . . 30 . Robot Hit Streak 20 | . . 20 . Robot Miss Streak 1 | . . 1 . Penetration Max . | . . . . Secondary Targets 1 | . . 1 . Max Gunslinging Chain 1 | . . 1 . Shots Hit Robots 41 | . . 41 . Core Hits 16 | . . 16 . Critical Kills . | . . . . Critical Parts Destroyed . | . . . . Critical Strikes 1 | . . 1 . Burn 1 | . . 1 . Melee Attacks . | . . . . Impact . | . . . . Slashing . | . . . . Piercing . | . . . . Sneak Attacks . | . . . . Combat Hostiles . | . . . . Follow-up Attacks . | . . . . Damage Inflicted 605 | . . 605 . Guns 579 | . . 579 . Cannons . | . . . . Explosions 20 | . . 20 . Melee . | . . . . Ramming 6 | . . 6 . Kinetic . | . . . . Thermal 280 | . . 280 . Explosive . | . . . . Electromagnetic 319 | . . 319 . Impact . | . . . . Slashing . | . . . . Piercing . | . . . . Highest Corruption . | . . . . Average Corruption . | . . . . Corruption Purged . | . . . . Corruption Blocked . | . . . . Overload Shots . | . . . . Overflow Damage . | . . . . Projectiles . | . . . . Explosions . | . . . . Melee . | . . . . Knockbacks . | . . . . Impact . | . . . . Kinetic . | . . . . Secondary . | . . . . Self-Inflicted Damage 41 | . . 41 . Shots 1 | . . 1 . Rammed 1 | . . 1 . Targets Rammed 1 | . . 1 . Kicked . | . . . . Crushed . | . . . . Highest Temperature 337 | . . 337 . Average Temperature 87 | . . 87 . Received Heat Transfer 69 | . 18 51 . Siege Activations . | . . . . Martial Activations . | . . . . Shielding Activations . | . . . . Robots Disrupted . | . . . . Combat Hostiles . | . . . . Robots Corrupted . | . . . . Combat Hostiles . | . . . . Parts Fried 2 | . . 2 . Impact Corruptions . | . . . . Robots Melted . | . . . . Combat Hostiles . | . . . . Parts Melted 1 | . . 1 . Heat Transferred 753 | . . 753 . Parts Sabotaged . | . . . . Parts Stolen . | . . . . Parts Stripped . | . . . . Power Chain Reactions 1 | . . 1 . Alert | -11 -10 -9 -9 ------- Run | Yrd Mat Mat Min Maximum Alert Level . | . . . . Low Security (%) 100 | 100 100 100 100 Level 1 . | . . . . Level 2 . | . . . . Level 3 . | . . . . Level 4 . | . . . . Level 5 . | . . . . High Security . | . . . . Max Security . | . . . . Peak Influence 146 | . 25 146 26 Initial 26 | . . . 26 Average 42 | . 3 92 2 Influence Increases 311 | . 29 282 . Destroy 0b10 Robot/C 200 | . . 200 . Destroy 0b10 Robot/NC 20 | . . 20 . Destroy Leader 44 | . . 44 . Successful Hack 15 | . 14 1 . Disable Machine 15 | . . 15 . Destroy Structure 2 | . . 2 . Lose Combat Pursuer 15 | . 15 . . Influence Decreases 311 | . 29 214 68 Entered New Map 42 | . . . 42 Time Decay 224 | . 20 194 10 Lost Part 45 | . 9 20 16 Squads Dispatched . | . . . . Investigation . | . . . . Extermination . | . . . . Reinforcement . | . . . . Assault . | . . . . Garrison . | . . . . Intercept . | . . . . Searches Triggered . | . . . . Construction Impeded . | . . . . Haulers Reinforced . | . . . . Active Scanning Responses . | . . . . Cargo Convoy Interrupts . | . . . . Stealth | -11 -10 -9 -9 --------- Run | Yrd Mat Mat Min Distress Signals 2 | . 2 . . Communications Jammed . | . . . . Distress Signals . | . . . . Times Spotted 44 | . 7 23 14 Peak Tracking Total 6 | . 4 6 5 Tactical Retreats 7 | . 2 2 3 Traps | -11 -10 -9 -9 ------- Run | Yrd Mat Mat Min Traps Triggered . | . . . . Indirectly . | . . . . Trap Hack Attempts . | . . . . Triggered . | . . . . Disarmed . | . . . . Reprogrammed . | . . . . Reused . | . . . . Traps Extracted . | . . . . Installed . | . . . . Triggered . | . . . . Machines | -11 -10 -9 -9 ---------- Run | Yrd Mat Mat Min Machines Disabled 1 | . . 1 . Max in Single Turn 1 | . . 1 . Machines Repaired . | . . . . Machines Dismantled . | . . . . Machines Sabotaged . | . . . . Overloaded Fab Kills . | . . . . Hacking | -11 -10 -9 -9 --------- Run | Yrd Mat Mat Min Machines Accessed 5 | . 2 3 . Terminals 4 | . 2 2 . Fabricators . | . . . . Repair Stations . | . . . . Recycling Units 1 | . . 1 . Scanalyzers . | . . . . Garrison Access . | . . . . Total Hacks 16 | . 9 7 . Successful 7 | . 5 2 . Failed 9 | . 4 5 . Catastrophic . | . . . . Database Lockouts . | . . . . Manual . | . . . . Terminals 14 | . 9 5 . Fabricators . | . . . . Repair Stations . | . . . . Recycling Units 2 | . . 2 . Scanalyzers . | . . . . Garrison Access . | . . . . Terminal Hacks 6 | . 5 1 . Record 1 | . . 1 . Prototype ID Bank 1 | . 1 . . Emergency Access Points 1 | . 1 . . Terminal Index 1 | . 1 . . Locate Traps 1 | . 1 . . Dispatch Records 1 | . 1 . . Fabricator Hacks . | . . . . Repair Station Hacks . | . . . . Recycling Unit Hacks 1 | . . 1 . Report Inventory 1 | . . 1 . Scanalyzer . | . . . . Garrison Access Hacks . | . . . . Unauthorized Hacks . | . . . . Terminals . | . . . . Fabricators . | . . . . Repair Stations . | . . . . Recycling Units . | . . . . Scanalyzers . | . . . . Garrison Access . | . . . . Data Cores Recovered 1 | . . 1 . Used . | . . . . Hacking Detections 5 | . 2 3 . Full Trace Events 1 | . 1 . . Feedback Events . | . . . . Feedback Blocked . | . . . . Robot Schematics Acquired . | . . . . Robots Built . | . . . . Authchips . | . . . . Time . | . . . . Total Robot Build Rating . | . . . . Part Schematics Acquired . | . . . . Parts Built . | . . . . Authchips . | . . . . Time . | . . . . Total Part Build Rating . | . . . . Parts Repaired . | . . . . Time . | . . . . Parts Recycled . | . . . . Recycled Matter . | . . . . Retrieved Matter . | . . . . Retrieved Components . | . . . . Parts Scanalyzed . | . . . . Part Schematics Acquired . | . . . . Parts Damaged . | . . . . Bothacking | -11 -10 -9 -9 ------------ Run | Yrd Mat Mat Min Used RIF Installer . | . . . . Robots Hacked . | . . . . Non-combat . | . . . . Combat . | . . . . Robot Hacks Applied . | . . . . Relay Couplers Released . | . . . . Fabnet Peak Effective % . | . . . . Robots Rewired . | . . . . Allies Hacked . | . . . . Hacks Repelled . | . . . . Allies | -11 -10 -9 -9 -------- Run | Yrd Mat Mat Min Total Allies . | . . . . Largest Group . | . . . . Highest-Rated Group . | . . . . Highest-Rated Ally . | . . . . Total Orders . | . . . . Ally Attacks . | . . . . Total Damage . | . . . . Kills . | . . . . Allies Corrupted . | . . . . Allies Melted . | . . . . Intel | -11 -10 -9 -9 ------- Run | Yrd Mat Mat Min Active Infowar (turns) 593 | . 61 450 82 ECM 593 | . 61 450 82 Robot Analysis Total . | . . . . Derelict Logs Recovered . | . . . . Drone Launches . | . . . . Drone Recoveries . | . . . . Exploration | -11 -10 -9 -9 ------------- Run | Yrd Mat Mat Min Turns Passed 1004 | 61 165 450 328 Spaces Moved 769 | 54 194 350 171 Core 86 | 6 . . 80 Treads . | . . . . Legs . | . . . . Wheels 683 | 48 194 350 91 Hover . | . . . . Flight . | . . . . Fastest Speed 50 | 50 80 80 50 Average Speed 92 | 85 80 91 109 Slowest Speed 200 | 200 80 110 150 Overloaded Moves . | . . . . Propulsion Burnouts . | . . . . Robots Hopped . | . . . . Potential Cave-ins 2 | . . . 2 Cave-ins Triggered . | . . . . Exploration Rate (%) 34 | 3 49 39 47 Regions Visited 3 Branch Regions 1 Pre-discovered Areas . | . . . . Known Exits Taken 1 | . . 1 . Unknown Exits Taken 2 | 1 1 . . Scrap Searched . | . . . . Spaces Dug . | . . . . Terrain Destroyed 1 | . . 1 . Melee . | . . . . Projectile . | . . . . AOE 1 | . . 1 . Terrain Rammed . | . . . . Walls Destroyed . | . . . . Machines Disabled . | . . . . Actions | -11 -10 -9 -9 --------- Run | Yrd Mat Mat Min Total 1006 | 68 204 423 311 Wait 154 | . 4 17 133 Move 766 | 53 193 349 171 Hop . | . . . . Pick Up 23 | 9 3 10 1 Fast Attach 2 | . . 2 . Attach 19 | 6 1 7 5 Detach 1 | . . 1 . Swap 4 | . 1 2 1 Drop 6 | . 2 4 . Fire 30 | . . 30 . Melee . | . . . . Ram 1 | . . 1 . Kick . | . . . . Crush . | . . . . Escape Stasis . | . . . . Rewire . | . . . . Trap . | . . . . Miscellaneous . | . . . . Route ------- -11/Scrapyard -10/Materials -9/Materials (discovered 2 exits: *Min / *Sto) -9/Mines History --------- Turn | Location | Event 21 | -11/Scrapyard | Discovered new exit (range 15) 62 | -11/Scrapyard | Entered Materials 214 | -10/Materials | Discovered new exit (range 10) 227 | -10/Materials | Entered another Materials area 227 | -9/Materials | Evolved 2 slots: Utility x2 314 | -9/Materials | Build established: Mutant 469 | -9/Materials | Discovered new exit (range 6) 529 | -9/Materials | Discovered new exit (range 14) 632 | -9/Materials | Identified exit to Storage 671 | -9/Materials | Identified exit to Mines 677 | -9/Materials | Entered Mines 678 | -9/Mines | Assembled infested the area 740 | -9/Mines | Lost 3 parts (2u1w) 762 | -9/Mines | Core integrity fell below 50% 767 | -9/Mines | Core integrity fell below 20% 792 | -9/Mines | Lost 6 parts (1p2n1u2w) 1005 | -9/Mines | Destroyed by YI-UF0 with YI-UF0's Doublenader Last Messages --------------- 00752_ YI-UF0 mumbles something. 00754_ The unstable cave ceiling collapses. 00754_ K-01 Serf collects debris. 00755_ The unstable cave ceiling collapses. 00755_ Mining Laser destroyed. 00757_ K-01 Serf collects debris. 00757_ Wheel destroyed. 00759_ The unstable cave ceiling collapses. 00759_ Particle Gun destroyed. 00759_ ECM Suite destroyed. 00759_ Imp. Ion Engine destroyed. 00761_ Com. Wheel destroyed. 00764_ YI-UF0 mumbles something. 00764_ The unstable cave ceiling collapses. 00765_ K-01 Serf collects debris. 00770_ K-01 Serf destroyed. 00997_ Acquired Wheel. 01005_ The unstable cave ceiling collapses. 01005_ Mining Laser destroyed. 01005_ EM Pulse Gun destroyed. Map ----- +----------------------------------------------------+ | | | | | | | | | | | | | | | | | | | | | ?????????????????????????????????????????????????? | | ######???????????????????????###???????###???????? | | #??????????????????????## ##????? ???????? | | #??????????????????????? #????? ???????? | | ### #??????????????????????? ##???? ???????? | | ## #???????????????????????# ####? ???????? | | ## #????????####??????????## ? ???????? | | ## #???????## #?????????## ?? ???????? | | ## #???????# #?????????## #?? ???????? | | ## #???????# ##?####?### #### #???????? | | ## ######### ### ### ? #???????? | | ## ## #### #???????? | | ## ### # ## #???????? | | ################# # #???????? | | ##???????????????# ## # ###?????# | | ?????????????????## @ # # #??#### | | ??????????????????#### * #?## | | ?????????????????????# # # # # ### | | ?????????????????????# # ## | | ????????????????????### ## | | ????????????????????# # ########### | | ???????????????????# ! ##???????? | | ???????????????????# | #???????? | | ???????????????????## ### # * ##???????? | | ????????????????????###??# < ##??????### | | ??????????????????????????# # #?????### | | ??????????????????????????? g% # ##????## | | ??????????????????????????? # ##?????# | | ??????????????????????????? # # #??????# | | ????????????????????????###### # # #??????## | | ????????????????????????# %% #???????## | | ????????????????????????# ######! #????????## # | | ????????????????????????????#### #####????# # | | ???????????????????????????????## ##???# # | | ????????????????????????????????## ##### # | | ?????????????????????????????????### | | ???????????????????????????????????## | | ????????????????????????????????????## ####### | | ?????????????????????????????????????## #????? | | ??????????????????????????????????????# #????? | +----------------------------------------------------+ Best States ------------- Heat Dissipation 28 Energy Generation 12 Energy Capacity 265 Matter Stores 300 Matter Capacity 300 Sight Range 16 Terrain Scan Density 10 ECM Strength 1 Armor Coverage 225 Evasion (%) 50 Targeting Accuracy 15 Offensive Hacking 10 Item Schematics ----------------- None Robot Schematics ------------------ None Fabricated ------------ Nothing Repaired ---------- Nothing Alien Tech Used ----------------- None Achievements -------------- None Challenges ------------ None Game ------ Seed ComponentWaveFalx Manual? 0 Play Time 00:19:53 Cumulative 40.0 hours Start 2025.09.02 @ 18:11:26 End 2025.09.02 @ 18:30:21 Sessions 1 Manual Loads 0 Difficulty Rogue Special Mode None Game No. 39 Rogue 39 Adventurer 0 Explorer 0 Win Type - Total 0 Types 0/0/0/0/0/0/0/0/0/0 Lore% 23 Gallery% 29 Achievement% 28 Wizard Run 0 Options --------- Layout 1 ASCII 0 Keyboard 0 Movement Numpad Keybinds 0 Fullscreen 1 Font 24/Smallcaps Map View 50x35 Zoom Use 0% Tactical HUD 1 Map Filters NONE Filters NONE Steam 1 RUN: d85ec555-a56f-46be-aa57-3d755a33795f